[Event "GER-ch Youth U14W 2020"]
[Site "Willingen"]
[Date "2020.10.22"]
[Round "4.11"]
[White "Alferova, Emily"]
[Black "Prinzen, Siri Marleen"]
[Result "0-1"]
[ECO "B10"]
[WhiteElo "1329"]
[BlackElo "1712"]
[Annotator "NA RC"]
[PlyCount "122"]
[EventDate "2020.10.20"]
[EventType "swiss"]
[EventRounds "7"]
[EventCountry "GER"]
[SourceTitle "playchess.com"]
[Source "ChessBase"]
[SourceQuality "1"]
[TimeControl "40/5400+30:1800+30"]

1. e4 {[%emt 0:00:00]} c6 {[%emt 0:00:00]} 2. Nc3 {[%emt 0:00:00]} d5 {[%emt 0:00:40]} 3. Nf3 {[%emt 0:00:00]} dxe4 {[%emt 0:00:08]} 4. Nxe4 {[%emt 0:00:00]} Nf6 {[%emt 0:00:23]} 5. Qe2 {[%emt 0:00:22]} Nxe4 {[%emt 0:00:08]} 6. Qxe4 {[%emt 0:00:13]} Qd5 {[%emt 0:00:07]} 7. Qh4 {[%emt 0:00:45]} Qe6+ {[%emt 0:00:49]} 8. Be2 {[%emt 0:01:13]} Qg4 {[%emt 0:01:35]} 9. Qxg4 {[%emt 0:04:14]} Bxg4 {[%emt 0:00:01]} 10. h3 {[%emt 0:00:13]} Bc8 {[%emt 0:04:46]} 11. d4 {[%emt 0:04:59]} Nd7 {[%emt 0:05:26]} 12. c3 {[%emt 0:03:48]} b6 {[%emt 0:05:39]} 13. Bf4 {[%emt 0:11:12]} Bb7 {[%emt 0:07:59]} 14. Ne5 {[%emt 0:06:36]} Nf6 {[%emt 0:12:29]} 15. Bf3 {[%emt 0:08:44]} Nd5 {[%emt 0:02:39]} 16. Bg3 {[%emt 0:06:39]} e6 {[%emt 0:02:24]} 17. a3 f6 {[%emt 0:08:39]} 18. Nd3 {[%emt 0:09:16]} Kf7 {[%emt 0:06:30]} 19. Nb4 {[%emt 0:06:58]} Rd8 {[%emt 0:06:38]} 20. Nxd5 {[%emt 0:04:24]} cxd5 {[%emt 0:01:11]} 21. O-O {[%emt 0:02:34]} h5 {[%emt 0:05:18]} 22. h4 {[%emt 0:02:26]} g6 {[%emt 0:04:21]} 23. Bf4 {[%emt 0:03:58]} Ba6 {[%emt 0:03:31]} 24. Rfe1 {[%emt 0:02:48]} Bd3 {[%emt 0:01:57]} 25. g3 {[%emt 0:03:12]} Be7 {[%emt 0:02:21]} 26. Re3 {[%emt 0:03:04]} Bf5 {[%emt 0:00:25]} 27. Kg2 {[%emt 0:00:49]} g5 {[%emt 0:01:41]} 28. hxg5 {[%emt 0:00:35]} fxg5 {[%emt 0:00:15]} 29. Be5 {[%emt 0:00:06]} g4 {[%emt 0:02:04]} 30. Bxh8 {[%emt 0:01:49]} gxf3+ {[%emt 0:00:08]} 31. Rxf3 {[%emt 0:01:01]} Rxh8 {[%emt 0:00:19]} 32. Re3 {[%emt 0:00:58]} Be4+ {[%emt 0:02:52]} 33. f3 {[%emt 0:00:56]} Bg5 {[%emt 0:01:01]} 34. Re2 {[%emt 0:01:39]} Bf5 {[%emt 0:01:30]} 35. Rh1 {[%emt 0:01:03]} h4 {[%emt 0:02:33]} 36. g4 {[%emt 0:00:32]} Bg6 {[%emt 0:01:08]} 37. Kh3 {[%emt 0:03:33]} Kf6 {[%emt 0:01:48]} 38. Rhe1 {[%emt 0:02:19]} Bf7 {[%emt 0:00:19]} 39. Rf1 {[%emt 0:00:25]} Bf4 {[%emt 0:00:42]} 40. Rd1 {[%emt 0:01:50]} Kg5 {[%emt 0:00:52]} 41. Rf1 {[%emt 0:33:12]} Rh6 {[%emt 0:31:21]} 42. Rd1 {[%emt 0:00:00]} Be8 {[%emt 0:00:00]} 43. b3 {[%emt 0:00:00]} Bb5 {[%emt 0:00:00]} 44. Rc2 {[%emt 0:00:00]} Rf6 {[%emt 0:00:00]} 45. a4 {[%emt 0:00:00]} Bc6 {[%emt 0:00:00]} 46. Rf1 {[%emt 0:00:00]} Bg3 {[%emt 0:00:00]} 47. Re2 {[%emt 0:00:00]} b5 {[%emt 0:00:00]} 48. Ra2 {[%emt 0:00:00]} bxa4 {[%emt 0:00:00]} 49. bxa4 {[%emt 0:00:00]} a5 {[%emt 0:00:00]} 50. Kg2 {[%emt 0:00:00]} Kf4 {[%emt 0:00:00]} 51. Kh3 {[%emt 0:00:00]} Bd7 {[%emt 0:00:00]} 52. Rc1 {[%emt 0:00:00]} Kg5 {[%emt 0:00:00]} 53. Rf1 {[%emt 0:00:00]} Bc8 {[%emt 0:00:00]} 54. Kg2 {[%emt 0:00:00]} Ba6 {[%emt 0:00:00]} 55. Rc1 {[%emt 0:00:00]} Kf4 {[%emt 0:00:00]} 56. Rh1 {[%emt 0:01:04]} Ke3 {[%emt 0:00:00]} 57. Ra3 {[%emt 0:00:47]} Bc4 {[%emt 0:00:00]} 58. g5 {[%emt 0:00:41]} Rxf3 {[%emt 0:00:00]} 59. Rb1 {[%emt 0:00:54]} Rf2+ {[%emt 0:00:00]} 60. Kh3 {[%emt 0:00:16]} Rh2+ {[%emt 0:00:00]} 61. Kg4 {[%emt 0:00:18]} Be2# {[%emt 0:00:00]} 0-1

[Event "GER-ch Youth U14W 2020"]
[Site "Willingen"]
[Date "2020.10.22"]
[Round "4.12"]
[White "Lorenz, Anouk"]
[Black "Kanno, Clara Yumi"]
[Result "1-0"]
[ECO "B90"]
[WhiteElo "1504"]
[BlackElo "1127"]
[Annotator "NA RC"]
[PlyCount "119"]
[EventDate "2020.10.20"]
[EventType "swiss"]
[EventRounds "7"]
[EventCountry "GER"]
[SourceTitle "playchess.com"]
[Source "ChessBase"]
[SourceQuality "1"]
[TimeControl "40/5400+30:1800+30"]

1. e4 {[%emt 0:00:00]} c5 {[%emt 0:00:00]} 2. Nf3 {[%emt 0:00:00]} d6 {[%emt 0:00:00]} 3. d4 {[%emt 0:00:00]} cxd4 {[%emt 0:00:00]} 4. Nxd4 {[%emt 0:00:00]} Nf6 {[%emt 0:00:00]} 5. Nc3 {[%emt 0:00:14]} a6 {[%emt 0:00:00]} 6. a4 {[%emt 0:01:06]} Nc6 {[%emt 0:01:09]} 7. Be2 {[%emt 0:01:09]} e6 {[%emt 0:00:29]} 8. O-O {[%emt 0:01:31]} Be7 {[%emt 0:00:31]} 9. Be3 {[%emt 0:01:03]} O-O {[%emt 0:01:10]} 10. Qd2 {[%emt 0:08:44]} Qc7 {[%emt 0:04:01]} 11. a5 {[%emt 0:07:49]} Nxa5 {[%emt 0:06:42]} 12. b3 {[%emt 0:21:04]} Nc6 {[%emt 0:09:08]} 13. f3 {[%emt 0:04:21]} b5 {[%emt 0:04:46]} 14. Ndxb5 {[%emt 0:03:47]} Qd7 {[%emt 0:02:58]} 15. Ra4 {[%emt 0:08:45]} Bb7 {[%emt 0:04:10]} 16. Nd4 {[%emt 0:02:39]} Rfc8 {[%emt 0:04:13]} 17. Rfa1 {[%emt 0:02:20]} Qc7 {[%emt 0:06:17]} 18. Bxa6 {[%emt 0:10:32]} Bxa6 {[%emt 0:04:45]} 19. Rxa6 {[%emt 0:00:30]} Rxa6 {[%emt 0:00:28]} 20. Rxa6 {[%emt 0:00:22]} Nxd4 {[%emt 0:00:27]} 21. Bxd4 {[%emt 0:01:12]} e5 {[%emt 0:00:13]} 22. Ra7 {[%emt 0:02:15]} Qc6 {[%emt 0:10:24]} 23. Rxe7 {[%emt 0:01:43]} exd4 {[%emt 0:00:47]} 24. Ne2 {[%emt 0:00:55]} Qb6 {[%emt 0:06:08]} 25. Qxd4 {[%emt 0:01:03]} Qc5 {[%emt 0:01:46]} 26. Qxc5 {[%emt 0:00:41]} dxc5 {[%emt 0:00:19]} 27. c4 {[%emt 0:01:53]} Kf8 {[%emt 0:00:54]} 28. Rb7 {[%emt 0:00:57]} Ke8 {[%emt 0:00:18]} 29. Kf2 {[%emt 0:00:30]} Nd7 {[%emt 0:00:22]} 30. Ke3 {[%emt 0:00:53]} Nb8 {[%emt 0:00:21]} 31. Nc3 {[%emt 0:01:04]} Nc6 {[%emt 0:01:22]} 32. Nb5 {[%emt 0:02:40]} Rd8 {[%emt 0:02:29]} 33. Rc7 {[%emt 0:04:43]} Na5 {[%emt 0:00:36]} 34. Rxc5 {[%emt 0:01:14]} Nxb3 {[%emt 0:00:08]} 35. Rd5 {[%emt 0:00:51]} Rc8 {[%emt 0:00:50]} 36. Nd6+ {[%emt 0:00:22]} Kd7 {[%emt 0:00:16]} 37. Nxc8+ {[%emt 0:00:08]} Kxc8 {[%emt 0:00:05]} 38. c5 {[%emt 0:00:37]} Kc7 {[%emt 0:00:09]} 39. Kd3 {[%emt 0:00:34]} Kc6 {[%emt 0:00:17]} 40. Rd6+ {[%emt 0:01:51]} Kxc5 {[%emt 0:00:13]} 41. Rd7 {[%emt 0:30:35]} Nc1+ {[%emt 0:31:02]} 42. Kc2 {[%emt 0:00:08]} Ne2 {[%emt 0:00:06]} 43. Rxf7 {[%emt 0:00:10]} Nd4+ {[%emt 0:00:26]} 44. Kd3 {[%emt 0:00:34]} Ne6 {[%emt 0:00:12]} 45. f4 {[%emt 0:00:44]} Kd6 {[%emt 0:00:31]} 46. Kc4 {[%emt 0:01:16]} h5 {[%emt 0:01:17]} 47. e5+ {[%emt 0:00:45]} Kc6 {[%emt 0:00:55]} 48. f5 {[%emt 0:00:34]} Nc5 49. Rxg7 {[%emt 0:00:18]} Nd7 {[%emt 0:00:32]} 50. Rxd7 {[%emt 0:00:45]} Kxd7 {[%emt 0:00:07]} 51. Kd5 {[%emt 0:00:03]} Ke7 {[%emt 0:00:06]} 52. f6+ {[%emt 0:00:28]} Kf7 {[%emt 0:00:05]} 53. Kd6 {[%emt 0:00:10]} Ke8 {[%emt 0:00:10]} 54. e6 {[%emt 0:00:24]} h4 {[%emt 0:00:06]} 55. f7+ {[%emt 0:00:16]} Kf8 {[%emt 0:00:08]} 56. Kd7 {[%emt 0:00:14]} h3 {[%emt 0:00:12]} 57. e7+ {[%emt 0:00:05]} Kxf7 {[%emt 0:00:19]} 58. e8=Q+ {[%emt 0:00:05]} Kf6 {[%emt 0:00:27]} 59. gxh3 {[%emt 0:00:23]} Kg5 {[%emt 0:00:12]} 60. Qf8 {[%emt 0:00:19]} 1-0

[Event "GER-ch Youth U14W 2020"]
[Site "Willingen"]
[Date "2020.10.22"]
[Round "4.13"]
[White "Petersen, Sophie"]
[Black "Sinner, Joselyne"]
[Result "1-0"]
[ECO "C86"]
[WhiteElo "1524"]
[BlackElo "1414"]
[Annotator "NA RC"]
[PlyCount "47"]
[EventDate "2020.10.20"]
[EventType "swiss"]
[EventRounds "7"]
[EventCountry "GER"]
[SourceTitle "playchess.com"]
[Source "ChessBase"]
[SourceQuality "1"]
[TimeControl "40/5400+30:1800+30"]

1. e4 {[%emt 0:00:00]} e5 {[%emt 0:00:00]} 2. Nf3 {[%emt 0:00:00]} Nc6 {[%emt 0:00:00]} 3. Bb5 {[%emt 0:00:00]} a6 {[%emt 0:00:00]} 4. Ba4 {[%emt 0:00:03]} Nf6 {[%emt 0:00:00]} 5. O-O {[%emt 0:00:43]} Be7 {[%emt 0:00:00]} 6. Qe2 {[%emt 0:00:54]} b5 {[%emt 0:00:34]} 7. Bb3 {[%emt 0:00:07]} O-O {[%emt 0:01:04]} 8. d4 {[%emt 0:01:09]} Nxd4 {[%emt 0:04:10]} 9. Nxd4 {[%emt 0:00:29]} exd4 {[%emt 0:00:05]} 10. e5 {[%emt 0:00:15]} Ne8 {[%emt 0:01:06]} 11. c3 {[%emt 0:01:03]} dxc3 {[%emt 0:05:00]} 12. Nxc3 {[%emt 0:00:13]} c5 {[%emt 0:11:54]} 13. Bd5 {[%emt 0:03:54]} Rb8 {[%emt 0:02:00]} 14. Bf4 {[%emt 0:03:32]} Rb6 {[%emt 0:08:31]} 15. Rad1 {[%emt 0:02:48]} Nc7 {[%emt 0:04:31]} 16. Be4 {[%emt 0:06:36]} Ne6 {[%emt 0:05:02]} 17. Be3 {[%emt 0:06:22]} Rb8 {[%emt 0:06:39]} 18. f4 {[%emt 0:01:55]} Nd4 {[%emt 0:13:26]} 19. Bxd4 {[%emt 0:03:18]} cxd4 {[%emt 0:00:07]} 20. Nd5 {[%emt 0:01:04]} Bc5 {[%emt 0:03:21]} 21. Qh5 {[%emt 0:04:10]} h6 {[%emt 0:05:56]} 22. Nf6+ {[%emt 0:02:38]} gxf6 23. Qxh6 {[%emt 0:00:35]} Re8 {[%emt 0:05:58]} 24. Bh7+ {[%emt 0:00:47]} 1-0

[Event "GER-ch Youth U14W 2020"]
[Site "Willingen"]
[Date "2020.10.23"]
[Round "5.1"]
[White "Pohle, Saskia"]
[Black "Bildat, Emilia"]
[Result "1-0"]
[ECO "B38"]
[WhiteElo "1749"]
[BlackElo "1704"]
[Annotator "NA RC"]
[PlyCount "49"]
[EventDate "2020.10.20"]
[EventType "swiss"]
[EventRounds "7"]
[EventCountry "GER"]
[SourceTitle "playchess.com"]
[Source "ChessBase"]
[SourceQuality "1"]
[TimeControl "40/5400+30:1800+30"]

1. e4 {[%emt 0:00:00]} c5 {[%emt 0:00:00]} 2. Nf3 {[%emt 0:00:00]} g6 {[%emt 0:00:00]} 3. d4 {[%emt 0:00:00]} cxd4 {[%emt 0:00:06]} 4. Nxd4 {[%emt 0:00:00]} Bg7 {[%emt 0:00:15]} 5. c4 {[%emt 0:00:01]} Nc6 {[%emt 0:00:18]} 6. Be3 {[%emt 0:00:06]} Nf6 {[%emt 0:00:27]} 7. Nc3 {[%emt 0:00:06]} d6 {[%emt 0:00:48]} 8. Be2 {[%emt 0:00:10]} O-O {[%emt 0:00:29]} 9. f3 {[%emt 0:00:06]} Bd7 {[%emt 0:00:27]} 10. Qd2 {[%emt 0:00:11]} Nxd4 {[%emt 0:01:17]} 11. Bxd4 {[%emt 0:00:08]} Bc6 {[%emt 0:01:08]} 12. O-O-O {[%emt 0:00:50]} a6 {[%emt 0:07:25]} 13. g4 {[%emt 0:00:13]} Rc8 {[%emt 0:01:13]} 14. Kb1 {[%emt 0:00:10]} h5 {[%emt 0:08:51]} 15. h4 {[%emt 0:00:17]} hxg4 {[%emt 0:09:36]} 16. h5 {[%emt 0:02:55]} Re8 {[%emt 0:13:07]} 17. hxg6 {[%emt 0:03:34]} fxg6 {[%emt 0:01:01]} 18. Qg5 {[%emt 0:03:47]} e5 {[%emt 0:05:28]} 19. Be3 {[%emt 0:01:15]} Kf7 {[%emt 0:01:37]} 20. c5 {[%emt 0:02:30]} gxf3 {[%emt 0:10:48]} 21. Bc4+ {[%emt 0:00:43]} Kf8 {[%emt 0:00:28]} 22. Qxg6 {[%emt 0:00:22]} Qe7 {[%emt 0:02:07]} 23. Rdg1 {[%emt 0:02:24]} Bb5 {[%emt 0:03:06]} 24. Rh8+ {[%emt 0:01:42]} Bxh8 {[%emt 0:01:12]} 25. Qg8+ {[%emt 0:00:07]} 1-0

[Event "GER-ch Youth U14W 2020"]
[Site "Willingen"]
[Date "2020.10.23"]
[Round "5.2"]
[White "Zhou, Lepu Coco"]
[Black "Sereda, Yaroslava"]
[Result "1-0"]
[ECO "B11"]
[WhiteElo "1872"]
[BlackElo "1756"]
[Annotator "NA RC"]
[PlyCount "97"]
[EventDate "2020.10.20"]
[EventType "swiss"]
[EventRounds "7"]
[EventCountry "GER"]
[SourceTitle "playchess.com"]
[Source "ChessBase"]
[SourceQuality "1"]
[TimeControl "40/5400+30:1800+30"]

{[%evp 14,97,-13,-17,-12,-8,-9,-6,-14,-20,0,0,2,0,0,1,1,-33,0,0,0,0,-7,-16,-8,-47,-54,-75,-64,32767,32767,32767,-77,-115,-59,-46,-42,-51,32767,32767,32767,-162,-27,-41,-37,-29,0,0,0,32767,32767,32767,32767,32767,32767,32767,32767,32767,32767,954,842,1485,32767,32767,32767,32767,32767,32767,32767,32767,29980,29945,32767,32767,32767,32767,29987,29988,29992,32767,32767,32767,32767,29995,29995,29994]} 1. e4 {[%emt 0:00:00]} c6 {[%emt 0:00:00]} 2. Nc3 {[%emt 0:00:00]} d5 {[%emt 0:00:00]} 3. Nf3 {[%emt 0:00:08]} Bg4 {[%emt 0:00:10]} 4. h3 {[%emt 0:00:25]} Bxf3 {[%emt 0:00:18]} 5. Qxf3 {[%emt 0:00:12]} e6 {[%emt 0:00:17]} 6. exd5 {[%emt 0:00:26]} cxd5 {[%emt 0:00:17]} 7. d4 {[%emt 0:00:20]} Nc6 {[%emt 0:01:43]} 8. Be3 {[%emt 0:01:03]} Nf6 {[%emt 0:05:58]} 9. Bd3 {[%emt 0:04:47]} a6 {[%emt 0:10:23] B11: Caro-Kann: Two Knights Variation.} 10. O-O {[%emt 0:15:33]} Nb4 {[%emt 0:08:39] [#]} 11. Bf4 $146 {[%emt 0:05:07]} ({Predecessor:} 11. Qg3 Nxd3 12. cxd3 Nh5 13. Qe5 Nf6 14. Bg5 Bd6 15. Bxf6 gxf6 16. Qh5 O-O 17. Rae1 {½-½ (63) Bango,L (2180)-Kalmar,T (2079) Slovakia 2018}) 11... Bd6 {[%emt 0:07:47]} 12. Bxd6 {[%emt 0:03:12]} Qxd6 {[%emt 0:00:19]} 13. a3 {[%emt 0:01:56]} Nxd3 {[%emt 0:02:06]} 14. Qxd3 {[%emt 0:00:12]} O-O {[%emt 0:01:55]} 15. Na4 {[%emt 0:01:53]} Ne4 {[%emt 0:02:57]} 16. c4 {[%emt 0:00:38]} Qc6 {[%emt 0:05:34]} 17. cxd5 {[%emt 0:03:40]} exd5 {[%emt 0:00:09]} 18. b3 {[%emt 0:00:16]} Rac8 {[%emt 0:06:52]} 19. f3 {[%emt 0:07:07]} b5 {[%emt 0:07:24]} 20. fxe4 {[%emt 0:01:51]} dxe4 {[%emt 0:02:37]} 21. Qe3 {[%emt 0:05:06]} bxa4 {[%emt 0:00:20]} 22. Rac1 {[%emt 0:00:30]} Qd5 {[%emt 0:17:22]} 23. b4 {[%emt 0:02:59]} f5 {[%emt 0:02:44]} 24. Rc5 {[%emt 0:01:10]} Rxc5 {[%emt 0:01:12]} 25. dxc5 {[%emt 0:01:51]} Rd8 {[%emt 0:07:50]} 26. Rc1 {[%emt 0:03:56]} Qb3 {[%emt 0:03:20]} 27. Qc3 $2 {[%emt 0:08:20]} (27. Qg5 $11 {and White has nothing to worry.} Re8 28. c6) 27... Rd1+ {[%emt 0:03:20]} (27... Kf7 $17 28. c6 Qxc3 29. Rxc3 Ke7) 28. Kh2 {[%emt 0:00:16]} Qxc3 $1 {[%emt 0:00:48]} 29. Rxc3 {[%emt 0:00:06]} Rd7 {[%emt 0:00:27]} 30. Kg3 {[%emt 0:00:21]} Kf7 {[%emt 0:00:23]} 31. Kf4 {[%emt 0:00:29]} Kf6 {[%emt 0:00:40]} 32. Ke3 {[%emt 0:01:56]} g5 {[%emt 0:01:26]} 33. c6 {[%emt 0:00:41]} Rc7 {[%emt 0:00:34]} 34. Kd4 {[%emt 0:00:14]} Ke6 {[%emt 0:00:11]} 35. Kc5 {[%emt 0:00:22]} f4 {[%emt 0:00:39]} 36. Kb6 $1 {[%emt 0:01:20]} Kd6 {[%emt 0:00:36]} 37. Rc1 {[%emt 0:00:10]} Re7 {[%emt 0:00:35]} 38. c7 {[%emt 0:00:29]} Re8 {[%emt 0:00:31]} 39. c8=Q {[%emt 0:00:13]} Rxc8 {[%emt 0:00:04]} 40. Rxc8 {[%emt 0:00:07]} e3 {[%emt 0:00:06]} 41. Re8 {[%emt 0:30:26]} h5 {[%emt 0:02:33]} 42. Kxa6 {[%emt 0:00:00]} g4 {[%emt 0:00:09]} 43. hxg4 {[%emt 0:00:00]} hxg4 {[%emt 0:00:04]} 44. b5 {[%emt 0:00:00]} Kd5 {[%emt 0:05:52]} 45. b6 {[%emt 0:00:00]} Kd4 {[%emt 0:00:07]} 46. b7 {[%emt 0:00:00]} f3 {[%emt 0:00:07]} 47. gxf3 {[%emt 0:00:00]} gxf3 {[%emt 0:00:05]} 48. b8=Q {[%emt 0:00:00]} f2 {[%emt 0:00:06]} 49. Qb5 {[%emt 0:00:00]} 1-0

[Event "GER-ch Youth U14W 2020"]
[Site "Willingen"]
[Date "2020.10.23"]
[Round "5.3"]
[White "Voigt, Anastasia"]
[Black "Werner, Rosalie"]
[Result "0-1"]
[ECO "C03"]
[WhiteElo "1562"]
[BlackElo "1688"]
[Annotator "NA RC"]
[PlyCount "72"]
[EventDate "2020.10.20"]
[EventType "swiss"]
[EventRounds "7"]
[EventCountry "GER"]
[SourceTitle "playchess.com"]
[Source "ChessBase"]
[SourceQuality "1"]
[TimeControl "40/5400+30:1800+30"]

1. e4 {[%emt 0:00:00]} e6 {[%emt 0:00:00]} 2. d4 {[%emt 0:00:00]} d5 {[%emt 0:00:00]} 3. Nd2 {[%emt 0:00:00]} Be7 {[%emt 0:00:00]} 4. e5 {[%emt 0:02:28]} c5 {[%emt 0:00:28]} 5. c3 {[%emt 0:01:16]} Qb6 {[%emt 0:02:36]} 6. Ndf3 {[%emt 0:05:41]} Bd7 {[%emt 0:02:02]} 7. Bd3 {[%emt 0:04:46]} Bb5 {[%emt 0:03:05]} 8. Bc2 {[%emt 0:01:52]} Nc6 {[%emt 0:04:23]} 9. Be3 {[%emt 0:09:47]} cxd4 {[%emt 0:05:08]} 10. Nxd4 {[%emt 0:04:15]} Nxd4 {[%emt 0:10:23]} 11. Bxd4 {[%emt 0:00:18]} Bc5 {[%emt 0:15:08]} 12. Bxc5 {[%emt 0:12:43]} Qxc5 {[%emt 0:00:08]} 13. Ne2 {[%emt 0:00:33]} Ne7 {[%emt 0:08:32]} 14. a4 {[%emt 0:00:50]} Bxe2 {[%emt 0:06:59]} 15. Qxe2 {[%emt 0:00:42]} Qc7 {[%emt 0:01:49]} 16. O-O {[%emt 0:00:49]} O-O {[%emt 0:02:21]} 17. Kh1 {[%emt 0:01:36]} Rac8 {[%emt 0:02:28]} 18. Rad1 {[%emt 0:02:16]} Nc6 {[%emt 0:03:44]} 19. f4 {[%emt 0:02:54]} g6 {[%emt 0:08:37]} 20. Bb1 {[%emt 0:02:30]} f5 {[%emt 0:05:55]} 21. g4 {[%emt 0:05:40]} Ne7 {[%emt 0:00:28]} 22. h4 {[%emt 0:03:30]} Rf7 {[%emt 0:03:32]} 23. h5 {[%emt 0:02:22]} Qc6 {[%emt 0:01:34]} 24. Rd4 {[%emt 0:03:27]} Rcf8 {[%emt 0:01:17]} 25. Rg1 {[%emt 0:01:24]} Rg7 {[%emt 0:00:53]} 26. Rg2 {[%emt 0:11:27]} Kf7 {[%emt 0:02:03]} 27. Qf2 {[%emt 0:08:26]} gxh5 {[%emt 0:03:03]} 28. gxf5 {[%emt 0:01:34]} Nxf5 {[%emt 0:00:43]} 29. Bxf5 {[%emt 0:00:39]} exf5 {[%emt 0:00:11]} 30. Rxg7+ {[%emt 0:00:30]} Kxg7 {[%emt 0:00:06]} 31. Qg3+ {[%emt 0:00:19]} Kh8 {[%emt 0:01:06]} 32. Qf3 {[%emt 0:01:24]} Rd8 {[%emt 0:01:52]} 33. Qxh5 {[%emt 0:01:02]} Rf8 {[%emt 0:00:26]} 34. Qd1 {[%emt 0:01:25]} Qh6+ {[%emt 0:01:02]} 35. Kg2 {[%emt 0:00:56]} Rg8+ {[%emt 0:00:15]} 36. Kf1 {[%emt 0:04:12]} Qh2 {[%emt 0:00:38]} 0-1

[Event "GER-ch Youth U14W 2020"]
[Site "Willingen"]
[Date "2020.10.23"]
[Round "5.4"]
[White "Cordes, Jule"]
[Black "Wagner, Margarethe"]
[Result "0-1"]
[ECO "E61"]
[WhiteElo "1718"]
[BlackElo "1804"]
[Annotator "NA RC"]
[PlyCount "70"]
[EventDate "2020.10.20"]
[EventType "swiss"]
[EventRounds "7"]
[EventCountry "GER"]
[SourceTitle "playchess.com"]
[Source "ChessBase"]
[SourceQuality "1"]
[TimeControl "40/5400+30:1800+30"]

{[%evp 11,50,11,32767,2,25,11,27,17,54,27,86,71,83,81,110,101,94,120,100,41,32767,32767,32767,33,45,50,32767,84,192,196,248,268,389,448,457,32767,32767,322,32767,32767,222]} 1. d4 {[%emt 0:00:00]} Nf6 {[%emt 0:00:00]} 2. c4 {[%emt 0:00:00]} g6 {[%emt 0:00:00]} 3. Nc3 {[%emt 0:00:06]} Bg7 {[%emt 0:00:00]} 4. Nf3 {[%emt 0:00:21]} O-O {[%emt 0:00:10]} 5. Bg5 {[%emt 0:00:36]} d6 {[%emt 0:01:42]} 6. e3 {[%emt 0:00:55]} c5 {[%emt 0:03:28]} 7. d5 {[%emt 0:04:01] is the new trend.} h6 {[%emt 0:07:20]} 8. Bh4 {[%emt 0:07:12]} Qb6 {[%emt 0:02:04] E61: King's Indian: Early deviations for White, including Smyslov System.} 9. Qc2 {[%emt 0:02:08] [#]} e6 $146 {[%emt 0:07:58]} ({Predecessor:} 9... g5 $5 {[%cal Rg5h4]} 10. Bg3 Bf5 $11 11. e4 Bg6 12. Bd3 Nh5 13. O-O Nd7 14. Rfe1 Nxg3 15. hxg3 Qa5 {1-0 (60) Arab,A (2441)-Salem,A (2586) Sharjah 2014}) 10. Be2 {[%emt 0:27:13]} e5 {[%emt 0:06:03]} 11. O-O {[%emt 0:13:33]} Nh7 {[%emt 0:08:12]} 12. e4 {[%emt 0:02:26]} f5 {[%emt 0:05:55] [#]} 13. exf5 $1 {[%emt 0:01:56]} gxf5 {[%emt 0:01:15]} 14. Nd2 {[%emt 0:01:52]} Nd7 {[%emt 0:05:20]} 15. a3 {[%emt 0:01:59]} (15. Bh5 $16) 15... e4 {[%emt 0:04:29]} 16. Rab1 {[%emt 0:02:19]} a6 {[%emt 0:01:10]} 17. b4 {[%emt 0:02:32]} cxb4 {[%emt 0:04:26]} 18. axb4 {[%emt 0:01:59]} Qd4 {[%emt 0:01:22]} 19. Na4 {[%emt 0:01:50]} Qe5 {[%emt 0:04:29] [#]} (19... b5 $16) 20. c5 $1 {[%emt 0:02:59]} dxc5 {[%emt 0:02:53]} (20... Ng5 {is a better defense.} 21. c6 Nf6) 21. bxc5 {[%emt 0:01:22]} b5 {[%emt 0:03:50]} (21... Ng5 $142 22. c6 bxc6) 22. cxb6 {[%emt 0:01:36]} Bb7 {[%emt 0:01:49]} 23. Rfd1 {[%emt 0:09:39]} Rfc8 {[%emt 0:03:49]} 24. Qa2 {[%emt 0:01:31]} Kh8 {[%emt 0:02:32]} 25. Bc4 {[%emt 0:01:57]} Ng5 $18 {[%emt 0:02:26]} (25... Nhf8 $16) 26. Nf1 {[%emt 0:01:56]} f4 {[%emt 0:01:10]} 27. d6 {[%emt 0:00:41]} e3 {[%emt 0:04:34]} 28. fxe3 {[%emt 0:05:47]} fxe3 {[%emt 0:02:00]} 29. Bg3 {[%emt 0:01:12]} Qe4 {[%emt 0:02:24]} 30. Bd5 {[%emt 0:01:14]} Bxd5 {[%emt 0:00:20]} 31. Rxd5 {[%emt 0:01:37]} Rc2 {[%emt 0:00:32]} 32. Qxc2 {[%emt 0:00:58]} Qxc2 {[%emt 0:00:08]} 33. b7 {[%emt 0:00:28]} Rb8 {[%emt 0:00:39]} 34. Rb4 {[%emt 0:00:08]} e2 {[%emt 0:01:16]} 35. Ne3 {[%emt 0:00:10]} Qc1+ {[%emt 0:00:22]} 0-1

[Event "GER-ch Youth U14W 2020"]
[Site "Willingen"]
[Date "2020.10.23"]
[Round "5.5"]
[White "Wörz, Ann-Sophie"]
[Black "Becker, Linda"]
[Result "0-1"]
[ECO "A14"]
[WhiteElo "1473"]
[BlackElo "1767"]
[Annotator "NA RC"]
[PlyCount "62"]
[EventDate "2020.10.20"]
[EventType "swiss"]
[EventRounds "7"]
[EventCountry "GER"]
[SourceTitle "playchess.com"]
[Source "ChessBase"]
[SourceQuality "1"]
[TimeControl "40/5400+30:1800+30"]

1. c4 {[%emt 0:00:00]} e6 {[%emt 0:00:00]} 2. g3 {[%emt 0:00:00]} Nf6 {[%emt 0:00:00]} 3. Bg2 {[%emt 0:00:00]} d5 {[%emt 0:00:18]} 4. Nf3 {[%emt 0:00:17]} Be7 {[%emt 0:00:14]} 5. O-O {[%emt 0:00:34]} O-O {[%emt 0:00:16]} 6. b3 {[%emt 0:01:22]} b6 {[%emt 0:00:54]} 7. Bb2 {[%emt 0:01:43]} Bb7 {[%emt 0:00:25]} 8. h3 {[%emt 0:02:28]} Nbd7 {[%emt 0:02:12]} 9. Re1 {[%emt 0:01:11]} c5 {[%emt 0:02:17]} 10. cxd5 {[%emt 0:00:26]} Nxd5 {[%emt 0:02:16]} 11. d4 {[%emt 0:02:19]} Qc7 {[%emt 0:03:55]} 12. Nc3 {[%emt 0:04:24]} Rac8 {[%emt 0:03:56]} 13. Rc1 {[%emt 0:04:08]} Qb8 {[%emt 0:01:13]} 14. Nxd5 {[%emt 0:10:44]} Bxd5 {[%emt 0:00:18]} 15. Kh2 {[%emt 0:04:15]} Rfd8 {[%emt 0:05:43]} 16. Rh1 {[%emt 0:06:34]} Nf6 {[%emt 0:05:47]} 17. Qe1 {[%emt 0:05:04]} Bxf3 {[%emt 0:06:41]} 18. Bxf3 {[%emt 0:01:48]} cxd4 {[%emt 0:00:41]} 19. Rxc8 {[%emt 0:01:29]} Qxc8 {[%emt 0:00:22]} 20. g4 {[%emt 0:05:48]} e5 {[%emt 0:03:38]} 21. g5 {[%emt 0:01:36]} Nd5 {[%emt 0:00:58]} 22. Qd2 {[%emt 0:02:24]} Nf4 {[%emt 0:03:07]} 23. Bg4 {[%emt 0:00:33]} Qc6 {[%emt 0:00:54]} 24. f3 {[%emt 0:10:56]} Bxg5 {[%emt 0:05:43]} 25. Rc1 {[%emt 0:04:12]} Qh6 {[%emt 0:03:30]} 26. Rc8 {[%emt 0:04:53]} Rxc8 {[%emt 0:00:37]} 27. Bxc8 {[%emt 0:00:03]} Nxh3 {[%emt 0:00:49]} 28. Qc2 {[%emt 0:04:18]} Nf4+ {[%emt 0:01:59]} 29. Kg1 {[%emt 0:01:04]} Qh4 {[%emt 0:01:36]} 30. Bd7 {[%emt 0:09:27]} Qe1+ {[%emt 0:00:25]} 31. Kh2 {[%emt 0:00:41]} Qf2+ {[%emt 0:00:08]} 0-1